bitfinex-derivatives/quotes_BNBF0:USTF0_20250908
["timestamp","ask_amount","ask_price","bid_price","bid_amount"]
[1757308482628,1.02199912,875.65,874.99,0.19833637]
[1757308484734,1.02199912,875.66,874.99,0.19833637]
[1757308484933,0.67200557,875.65,874.99,0.19833637]
[1757308485132,1.02199912,875.66,874.99,0.19833637]
[1757308485336,0.67200552,875.65,874.99,0.19833637]
[1757308485535,1.02199912,875.66,874.99,0.19833637]
[1757308485737,0.67192841,875.65,874.99,0.19833637]
[1757308486038,1.02199912,875.66,874.99,0.19833637]
[1757308486337,0.67192867,875.65,874.99,0.19833637]
[1757308486537,1.02199912,875.67,874.99,0.19833637]
[1757308486737,0.67185858,875.66,874.99,0.19833637]
[1757308486938,0.67185858,875.65,874.99,0.19833637]
[1757308487239,1.02199912,875.67,874.99,0.19833637]
[1757308487538,0.67179726,875.66,874.99,0.19833637]
[1757308487738,0.67179726,875.65,874.99,0.19833637]
[1757308487940,1.02199912,875.67,874.99,0.19833637]
[1757308488139,0.67178382,875.66,874.99,0.19833637]
[1757308488435,0.67178382,875.65,874.99,0.19833637]
[1757308488642,1.02199912,875.67,874.99,0.19833637]
[1757308488939,0.67173132,875.66,874.99,0.19833637]
[1757308489136,0.67173132,875.65,874.99,0.19833637]
[1757308489334,1.02199912,875.67,874.99,0.19833637]
[1757308489538,0.67168722,875.66,874.99,0.19833637]
[1757308489736,0.67168722,875.65,874.99,0.19833637]
[1757308490042,1.02199912,875.66,874.99,0.19833637]
[1757308490337,0.67168722,875.65,874.99,0.19833637]
[1757308490641,1.02199912,875.66,874.99,0.19833637]
[1757308490937,0.67165129,875.65,874.99,0.19833637]
[1757308491137,1.02199912,875.66,874.99,0.19833637]
[1757308491338,0.67165129,875.65,874.99,0.19833637]
[1757308491543,1.02199912,875.66,874.99,0.19833637]
[1757308491742,0.67162346,875.65,874.99,0.19833637]
[1757308491942,1.02199912,875.66,874.99,0.19833637]
[1757308492243,0.67162325,875.65,874.99,0.19833637]
[1757308492439,1.02199912,875.66,874.99,0.19833637]
[1757308492739,0.67160035,875.65,874.99,0.19833637]
[1757308493039,1.02199912,875.66,874.99,0.19833637]
[1757308493240,0.67160345,875.65,874.99,0.19833637]
[1757308493439,1.02199912,875.66,874.99,0.19833637]
[1757308493739,0.67159159,875.65,874.99,0.19833637]
[1757308493938,1.02199912,875.66,874.99,0.19833637]
[1757308494139,0.67159115,875.65,874.99,0.19833637]
[1757308494342,1.02199912,875.66,874.99,0.19833637]
[1757308494542,0.67158723,875.65,874.99,0.19833637]
[1757308494739,1.02199912,875.65,874.99,0.19833637]
[1757308501753,1.02199912,875.67,874.99,0.19833637]
[1757308501953,0.67174141,875.66,874.99,0.19833637]
[1757308502248,1.02199912,875.69,874.99,0.19833637]
[1757308502453,0.47335565,875.68,873.92,0.5]
[1757308502748,1.02199912,875.69,873.92,0.5]
[1757308503148,1.02199912,875.7,873.92,0.5]
[1757308503353,1.02199912,875.71,873.92,0.5]
[1757308503851,1.02199912,875.7,873.92,0.5]
[1757308504549,1.02199912,875.69,873.92,0.5]
[1757308504754,1.02199912,875.71,873.92,0.5]
[1757308505151,1.02199912,875.71,874.36,0.19845796]
[1757308505350,1.02199912,875.72,874.36,0.19845796]
[1757308506755,1.02199912,875.73,874.36,0.19845796]
[1757308509154,1.02199912,875.74,874.36,0.19845796]
[1757308509359,1.02199912,875.73,874.36,0.19845796]
[1757308509657,1.02199912,875.74,874.36,0.19845796]
[1757308510359,1.02199912,875.73,874.36,0.19845796]
[1757308510558,1.02199912,875.74,874.36,0.19845796]
[1757308511259,1.02199912,875.73,874.36,0.19845796]
[1757308511555,1.02199912,875.68,874.36,0.19845796]
[1757308511759,1.02199912,875.69,874.36,0.19845796]
[1757308512554,1.02199912,875.7,874.36,0.19845796]
[1757308514154,1.02199912,875.69,874.36,0.19845796]
[1757308514560,0.67126049,875.68,874.36,0.19845796]
[1757308514859,1.02199912,875.71,874.36,0.19845796]
[1757308515060,0.67126066,875.7,874.36,0.19845796]
[1757308515257,0.67126066,875.69,874.36,0.19845796]
[1757308515562,0.67126066,875.68,874.36,0.19845796]
[1757308515758,1.02199912,875.92,874.36,0.19845796]
[1757308515958,0.67149485,875.91,874.36,0.19845796]
[1757308516162,0.67149485,875.9,874.36,0.19845796]
[1757308516360,0.67149485,875.89,874.36,0.19845796]
[1757308516560,1.5293486,876.21,874.36,0.19845796]
[1757308516561,0.67149485,875.88,874.36,0.19845796]
[1757308516764,0.67149485,875.87,874.36,0.19845796]
[1757308516962,1.02199912,875.94,874.36,0.19845796]
[1757308516963,0.67149485,875.86,874.36,0.19845796]
[1757308517164,0.67149485,875.85,874.36,0.19845796]
[1757308517363,0.67149485,875.84,874.36,0.19845796]
[1757308517666,0.67149485,875.83,874.36,0.19845796]
[1757308517962,0.67149485,875.82,874.36,0.19845796]
[1757308518166,0.67149485,875.81,874.36,0.19845796]
[1757308518465,0.67149485,875.8,874.36,0.19845796]
[1757308518762,0.67149485,875.79,874.36,0.19845796]
[1757308518961,0.67149485,875.78,874.36,0.19845796]
[1757308519162,0.67149485,875.77,874.36,0.19845796]
[1757308519364,0.67149485,875.76,874.36,0.19845796]
[1757308519662,0.67149485,875.75,874.36,0.19845796]
[1757308519966,0.67149485,875.74,874.36,0.19845796]
[1757308520264,0.67149485,875.73,874.36,0.19845796]
[1757308520464,0.67149485,875.72,874.36,0.19845796]
[1757308520666,0.67149485,875.71,874.36,0.19845796]
[1757308520865,0.67149485,875.7,874.36,0.19845796]
[1757308521066,0.67149485,875.69,874.36,0.19845796]
[1757308521265,0.67149485,875.68,874.36,0.19845796]
[1757308521561,1.02199912,875.94,874.36,0.19845796]
[1757308521766,0.67279513,875.93,874.36,0.19845796]
[1757308521962,0.67279513,875.92,874.36,0.19845796]
[1757308522162,0.67279513,875.91,874.36,0.19845796]
[1757308522367,0.67279513,875.9,874.36,0.19845796]
[1757308522667,0.67279513,875.89,874.36,0.19845796]
[1757308522867,0.67279513,875.88,874.36,0.19845796]
[1757308523066,0.67279513,875.87,874.36,0.19845796]
[1757308523267,0.67279513,875.86,874.36,0.19845796]
[1757308523468,0.67279513,875.85,874.36,0.19845796]
[1757308523668,0.67279513,875.84,874.36,0.19845796]
[1757308523870,0.67279513,875.83,874.36,0.19845796]
[1757308524170,0.67279513,875.82,874.36,0.19845796]
[1757308524366,0.67279513,875.81,874.36,0.19845796]
[1757308524568,0.67279513,875.8,874.36,0.19845796]
[1757308524772,0.67279513,875.79,874.36,0.19845796]
[1757308525072,0.67279513,875.78,874.36,0.19845796]
[1757308525268,0.67279513,875.77,874.36,0.19845796]
[1757308525572,0.67279513,875.76,874.36,0.19845796]
[1757308525773,0.67279513,875.75,874.36,0.19845796]
[1757308526074,0.67279513,875.74,874.36,0.19845796]
[1757308526374,0.67279513,875.73,874.36,0.19845796]
[1757308526569,0.67279513,875.72,874.36,0.19845796]
[1757308526773,0.67279513,875.71,874.36,0.19845796]
[1757308526975,0.67279513,875.7,874.36,0.19845796]
[1757308527269,0.67279513,875.69,874.36,0.19845796]
[1757308527476,0.67279513,875.68,874.36,0.19845796]
[1757308527677,0.67279513,875.67,874.36,0.19845796]
[1757308527977,1.02199912,875.76,874.36,0.19845796]
[1757308528177,0.67507619,875.75,874.36,0.19845796]
[1757308528377,0.67507619,875.74,874.36,0.19845796]
[1757308528574,0.67507619,875.73,874.36,0.19845796]
[1757308528774,0.67507619,875.72,874.36,0.19845796]
[1757308528973,0.67507619,875.71,874.36,0.19845796]
[1757308529177,0.67507619,875.7,874.36,0.19845796]
[1757308529477,0.67507619,875.69,874.36,0.19845796]
[1757308529673,0.67507619,875.68,874.36,0.19845796]
[1757308529874,1.02199912,875.79,874.36,0.19845796]
[1757308530075,0.67508365,875.78,874.36,0.19845796]
[1757308530279,0.67508365,875.77,874.36,0.19845796]
[1757308530576,0.67508365,875.76,874.36,0.19845796]
[1757308530877,0.67508365,875.75,874.36,0.19845796]
[1757308531077,0.67508365,875.74,874.36,0.19845796]
[1757308531380,0.67508365,875.73,874.36,0.19845796]
[1757308531580,0.67508365,875.72,874.36,0.19845796]
[1757308531781,0.67508365,875.71,874.36,0.19845796]
[1757308531978,0.67508365,875.7,874.36,0.19845796]
[1757308532183,0.67508365,875.69,874.36,0.19845796]
[1757308532479,0.67508365,875.68,874.36,0.19845796]
[1757308532682,1.02199912,875.79,874.36,0.19845796]
[1757308532882,1.69706509,875.78,874.36,0.19845796]
[1757308533183,0.67506597,875.77,874.36,0.19845796]
[1757308533384,0.67506597,875.76,874.36,0.19845796]
[1757308533581,0.67506597,875.75,874.36,0.19845796]
[1757308533783,0.67506597,875.74,874.36,0.19845796]
[1757308534084,0.67506597,875.73,874.36,0.19845796]
[1757308534287,0.67506597,875.72,874.36,0.19845796]
[1757308534482,0.67506597,875.71,874.36,0.19845796]
[1757308534780,0.67506597,875.7,874.36,0.19845796]
[1757308535083,0.67506597,875.69,874.36,0.19845796]
[1757308535283,0.67506597,875.68,874.36,0.19845796]
[1757308535480,1.02199912,875.74,874.36,0.19845796]
[1757308535685,1.69706549,875.73,874.36,0.19845796]
[1757308535882,0.67506637,875.72,874.36,0.19845796]
[1757308536081,0.67506637,875.71,874.36,0.19845796]
[1757308536283,0.67506637,875.7,874.36,0.19845796]
[1757308536485,0.67506637,875.69,874.36,0.19845796]
[1757308536783,1.69706549,875.68,874.36,0.19845796]
[1757308536982,1.02199912,875.68,874.36,0.19845796]
[1757308540786,1.69748006,875.67,874.36,0.19845796]
[1757308541086,1.02199912,875.67,874.36,0.19845796]
[1757308544793,1.02199912,875.58,874.36,0.19845796]
[1757308545188,1.69873042,875.57,874.36,0.19845796]
[1757308545391,1.69873042,875.56,874.36,0.19845796]
[1757308545592,1.02199912,875.56,874.36,0.19845796]
[1757308546796,1.02199912,875.52,874.36,0.19845796]
[1757308550395,0.67721482,875.51,874.36,0.19845796]
[1757308550592,1.02199912,875.51,874.36,0.19845796]
[1757308558004,1.69871425,875.5,874.36,0.19845796]
[1757308558201,1.02199912,875.5,874.36,0.19845796]
[1757308558704,1.69865086,875.49,874.36,0.19845796]
[1757308558905,1.02199912,875.45,874.36,0.19845796]
[1757308561606,1.02199912,875.4,874.36,0.19845796]
[1757308562606,1.02199912,875.41,874.36,0.19845796]
[1757308568608,1.6990409,875.4,874.36,0.19845796]
[1757308568809,1.02199912,875.4,874.36,0.19845796]
[1757308572409,1.02199912,875.41,874.36,0.19845796]
[1757308572609,0.67683152,875.4,874.36,0.19845796]
[1757308572810,1.02199912,875.41,874.36,0.19845796]
[1757308573007,0.67683145,875.4,874.36,0.19845796]
[1757308573210,1.02199912,875.41,874.36,0.19845796]
[1757308573410,0.67679248,875.4,874.36,0.19845796]
[1757308573609,1.02199912,875.41,874.36,0.19845796]
[1757308573805,0.67679248,875.4,874.36,0.19845796]
[1757308574110,1.02199912,875.41,874.36,0.19845796]
[1757308574305,0.67675887,875.4,874.36,0.19845796]
[1757308574505,1.02199912,875.42,874.36,0.19845796]
[1757308574711,0.67675904,875.41,874.36,0.19845796]
[1757308575012,0.67675904,875.4,874.36,0.19845796]
[1757308575208,1.02199912,875.46,874.36,0.19845796]
[1757308575406,0.67673017,875.45,874.36,0.19845796]
[1757308575614,0.67673017,875.44,874.36,0.19845796]
[1757308575814,0.67673017,875.43,874.36,0.19845796]
[1757308576010,0.67673017,875.42,874.36,0.19845796]
[1757308576214,0.67673017,875.41,874.36,0.19845796]
[1757308576414,0.67673017,875.4,874.36,0.19845796]
[1757308576615,1.02199912,875.44,874.36,0.19845796]
[1757308576817,0.67670596,875.43,874.36,0.19845796]
[1757308577011,0.67670596,875.42,874.36,0.19845796]
[1757308577316,0.67670596,875.41,874.36,0.19845796]
[1757308577512,0.67670596,875.4,874.36,0.19845796]
[1757308577717,1.02199912,875.48,874.36,0.19845796]
[1757308577915,0.67668643,875.47,874.36,0.19845796]
[1757308578213,0.67668643,875.46,874.36,0.19845796]
[1757308578514,0.67668643,875.45,874.36,0.19845796]
[1757308578818,0.67668643,875.44,874.36,0.19845796]
[1757308579018,0.67668643,875.43,874.36,0.19845796]
[1757308579219,0.67668643,875.42,874.36,0.19845796]
[1757308579517,0.67668643,875.41,874.36,0.19845796]
[1757308579718,0.67668643,875.4,874.36,0.19845796]
[1757308580015,0.67668643,875.39,874.36,0.19845796]
[1757308580214,0.67668643,875.38,874.36,0.19845796]
[1757308580414,1.02199912,875.46,874.36,0.19845796]
[1757308580615,0.67662269,875.45,874.36,0.19845796]
[1757308580814,0.67662269,875.44,874.36,0.19845796]
[1757308581016,0.67662269,875.43,874.36,0.19845796]
[1757308581315,0.67662269,875.42,874.36,0.19845796]
[1757308581518,0.67662269,875.41,874.36,0.19845796]
[1757308581715,0.67662269,875.4,874.36,0.19845796]
[1757308581919,1.02199912,875.49,874.36,0.19845796]
[1757308581920,0.67662269,875.39,874.36,0.19845796]
[1757308582118,0.67662269,875.38,874.36,0.19845796]
[1757308582319,1.02199912,875.48,874.36,0.19845796]
[1757308582519,0.676608,875.47,874.36,0.19845796]
[1757308582715,0.676608,875.46,874.36,0.19845796]
[1757308582919,0.676608,875.45,874.36,0.19845796]
[1757308583116,0.676608,875.44,874.36,0.19845796]
[1757308583422,0.676608,875.43,874.36,0.19845796]
[1757308583616,0.676608,875.42,874.36,0.19845796]
[1757308583919,0.676608,875.41,874.36,0.19845796]
[1757308584119,0.676608,875.4,874.36,0.19845796]
[1757308584320,0.676608,875.39,874.36,0.19845796]
[1757308584517,0.676608,875.38,874.36,0.19845796]
[1757308584825,0.676608,875.37,874.36,0.19845796]
[1757308585117,0.676608,875.36,874.36,0.19845796]
[1757308585317,1.02199912,875.4,874.36,0.19845796]
[1757308585517,0.6765623,875.39,874.36,0.19845796]
[1757308585721,1.02199912,875.4,874.36,0.19845796]
[1757308585722,0.6765623,875.38,874.36,0.19845796]
[1757308585921,0.6765623,875.37,874.36,0.19845796]
[1757308586116,0.6765623,875.36,874.36,0.19845796]
[1757308586321,1.02199912,875.4,874.36,0.19845796]
[1757308586520,0.67657426,875.39,874.36,0.19845796]
[1757308586817,0.67657426,875.38,874.36,0.19845796]
[1757308587021,0.67657426,875.37,874.36,0.19845796]
[1757308587223,0.67657426,875.36,874.36,0.19845796]
[1757308587523,1.02199912,875.4,874.36,0.19845796]
[1757308587822,0.67657827,875.39,873.76,0.5]
[1757308588022,0.67657827,875.38,873.76,0.5]
[1757308588222,0.67657827,875.37,873.76,0.5]
[1757308588518,0.67657827,875.36,873.76,0.5]
[1757308588717,1.02199912,875.4,873.76,0.5]
[1757308588919,0.67658758,875.39,873.76,0.5]
[1757308589121,0.67658758,875.38,873.76,0.5]
[1757308589321,0.67658758,875.37,873.76,0.5]
[1757308589522,0.67658758,875.36,873.76,0.5]
[1757308589830,1.02199912,875.4,873.76,0.5]
[1757308590025,0.67661248,875.39,873.76,0.5]
[1757308590220,0.67661248,875.38,873.76,0.5]
[1757308590420,0.67661248,875.37,873.76,0.5]
[1757308590722,0.67661248,875.36,873.76,0.5]
[1757308590922,1.02199912,875.42,873.76,0.5]
[1757308591121,0.67664436,875.41,873.76,0.5]
[1757308591326,0.67664436,875.4,873.76,0.5]
[1757308591523,0.67664436,875.39,873.76,0.5]
[1757308591728,0.67664436,875.38,873.76,0.5]
[1757308591926,0.67664436,875.37,873.76,0.5]
[1757308592128,0.67664436,875.36,873.76,0.5]
[1757308592428,1.02199912,875.41,873.76,0.5]
[1757308592626,0.67674029,875.4,874.15,0.19852759]
[1757308592823,1.02199912,875.41,874.15,0.19852759]
[1757308592824,0.67674029,875.39,874.15,0.19852759]
[1757308593024,0.67674029,875.38,874.15,0.19852759]
[1757308593226,0.67674029,875.37,874.15,0.19852759]
[1757308593429,0.67674029,875.36,874.15,0.19852759]
[1757308593629,1.02199912,875.38,874.15,0.19852759]
[1757308593830,0.67679217,875.37,874.15,0.19852759]
[1757308594130,0.67679217,875.36,874.15,0.19852759]
[1757308594331,1.02199912,875.37,874.15,0.19852759]
[1757308594528,0.67685155,875.36,874.15,0.19852759]
[1757308594727,1.02199912,875.39,874.15,0.19852759]
[1757308594931,0.67686292,875.38,874.15,0.19852759]
[1757308595129,0.67686292,875.37,874.15,0.19852759]
[1757308595331,0.67686292,875.36,874.15,0.19852759]
[1757308595535,1.02199912,875.4,874.15,0.19852759]
[1757308595732,0.67693014,875.39,874.15,0.19852759]
[1757308596036,0.67693014,875.38,874.15,0.19852759]
[1757308596330,0.67693014,875.37,874.15,0.19852759]
[1757308596530,0.67693014,875.36,874.15,0.19852759]
[1757308596736,1.02199912,875.39,874.15,0.19852759]
[1757308597036,1.69899389,875.38,874.15,0.19852759]
[1757308597229,1.69899389,875.37,874.15,0.19852759]
[1757308597430,0.67699477,875.36,874.15,0.19852759]
[1757308597635,1.02199912,875.37,874.15,0.19852759]
[1757308597835,0.67706275,875.36,874.15,0.19852759]
[1757308598132,1.02199912,875.39,874.15,0.19852759]
[1757308598436,0.67714992,875.38,874.15,0.19852759]
[1757308598632,0.67714992,875.37,874.15,0.19852759]
[1757308598831,0.67714992,875.36,874.15,0.19852759]
[1757308599136,1.02199912,875.43,874.15,0.19852759]
[1757308599432,0.67724879,875.42,874.15,0.19852759]
[1757308599635,0.67724879,875.41,874.15,0.19852759]
[1757308599936,1.69924791,875.4,874.15,0.19852759]
[1757308600236,0.67724879,875.39,874.15,0.19852759]
[1757308600536,0.67724879,875.38,874.15,0.19852759]
[1757308600736,0.67724879,875.37,874.15,0.19852759]
[1757308601032,0.67724879,875.36,874.15,0.19852759]
[1757308601337,1.02199912,875.39,874.15,0.19852759]
[1757308601536,0.67747548,875.38,874.15,0.19852759]
[1757308601736,0.67747548,875.37,874.15,0.19852759]
[1757308602035,0.67747548,875.36,874.15,0.19852759]
[1757308602230,1.02199912,875.38,874.15,0.19852759]
[1757308602435,0.67760634,875.37,874.15,0.19852759]
[1757308602633,0.67760634,875.36,874.15,0.19852759]
[1757308602837,1.02199912,875.38,874.15,0.19852759]
[1757308603035,0.67760627,875.37,874.15,0.19852759]
[1757308603238,0.67760627,875.36,874.15,0.19852759]
[1757308603534,1.02199912,875.37,874.15,0.19852759]
[1757308603737,0.67775675,875.36,874.15,0.19852759]
[1757308604035,1.02199912,875.38,874.15,0.19852759]
[1757308604240,1.5293486,875.61,874.15,0.19852759]
[1757308604241,1.6997594,875.37,874.15,0.19852759]
[1757308604434,0.67776028,875.36,874.15,0.19852759]
[1757308604638,1.02199912,875.37,874.15,0.19852759]
[1757308604836,1.69993164,875.36,874.15,0.19852759]
[1757308605039,1.02199912,875.36,874.15,0.19852759]
[1757308607636,1.02199912,875.37,874.15,0.19852759]
[1757308610838,1.02199912,875.54,874.15,0.19852759]
[1757308611043,1.5293486,875.84,872.8,3.54241525]
[1757308611044,0.67828642,875.53,873.93,0.5]
[1757308611342,0.67828642,875.52,873.94,0.5]
[1757308611541,0.67828642,875.51,873.77,0.321]
[1757308611844,0.67828642,875.5,874.01,0.5]
[1757308612140,1.5293486,875.66,873.8,0.5]
[1757308612340,0.67625553,875.65,873.8,0.5]
[1757308612638,0.67625553,875.64,874.05,0.5]
[1757308612845,0.67625553,875.63,873.86,0.284]
[1757308613043,0.67625553,875.62,873.86,0.284]
[1757308613242,0.67625553,875.61,873.86,0.284]
[1757308613438,0.67625553,875.6,873.86,0.284]
[1757308613640,0.67625553,875.59,873.86,0.284]
[1757308613941,0.67625553,875.58,874.2,0.19851286]
[1757308614140,0.67625553,875.57,874.2,0.19851286]
[1757308614342,0.67625553,875.56,874.2,0.19851286]
[1757308614545,1.5293486,875.7,874.2,0.19851286]
[1757308614740,0.67618469,875.69,874.2,0.19851286]
[1757308614940,0.67618469,875.68,874.2,0.19851286]
[1757308615145,1.5293486,875.75,874.2,0.19851286]
[1757308615146,0.67618469,875.67,874.2,0.19851286]
[1757308615346,0.67618469,875.66,874.2,0.19851286]
[1757308615543,0.67618469,875.65,874.2,0.19851286]
[1757308615747,0.67618469,875.64,874.2,0.19851286]
[1757308616048,0.67618469,875.63,874.2,0.19851286]
[1757308616245,0.67618469,875.62,874.2,0.19851286]
[1757308616443,0.67618469,875.61,874.2,0.19851286]
[1757308616747,0.67618469,875.6,874.2,0.19851286]
[1757308617043,0.67618469,875.59,874.2,0.19851286]
[1757308617242,0.67618469,875.58,874.2,0.19851286]
[1757308617444,0.67618469,875.57,874.2,0.19851286]
[1757308617644,0.67618469,875.56,874.2,0.19851286]
[1757308617846,1.5293486,875.75,874.2,0.19851286]
[1757308618144,1.5293486,875.73,874.2,0.19851286]
[1757308618348,0.67604256,875.72,874.2,0.19851286]
[1757308618648,0.67604256,875.71,874.2,0.19851286]
[1757308618948,0.67604256,875.7,874.2,0.19851286]
[1757308619144,0.67604256,875.69,874.2,0.19851286]
[1757308619347,0.67604256,875.68,874.2,0.19851286]
[1757308619646,0.67604256,875.67,874.2,0.19851286]
[1757308619847,0.67604256,875.66,874.2,0.19851286]
[1757308620044,0.67604256,875.65,874.2,0.19851286]
[1757308620347,0.67604256,875.64,874.2,0.19851286]
[1757308620548,0.67592406,875.63,874.2,0.19851286]
[1757308620748,0.67592406,875.62,874.2,0.19851286]
[1757308621050,0.67592406,875.61,874.2,0.19851286]
[1757308621344,0.67592406,875.6,874.2,0.19851286]
[1757308621548,0.67592406,875.59,874.2,0.19851286]
[1757308621747,0.67592406,875.58,874.2,0.19851286]
[1757308621948,0.67592406,875.57,874.2,0.19851286]
[1757308622145,0.67592406,875.56,874.2,0.19851286]
[1757308622450,0.67592406,875.55,874.2,0.19851286]
[1757308622650,0.67592406,875.54,874.2,0.19851286]
[1757308622949,1.5293486,875.69,874.2,0.19851286]
[1757308623149,2.20642992,875.68,874.2,0.19851286]
[1757308623346,1.5293486,875.65,874.2,0.19851286]
[1757308623550,0.67708132,875.64,874.2,0.19851286]
[1757308623748,0.67708132,875.63,874.2,0.19851286]
[1757308624050,0.67708132,875.62,874.2,0.19851286]
[1757308624249,0.67708132,875.61,874.2,0.19851286]
[1757308624548,0.67708132,875.6,874.2,0.19851286]
[1757308624751,0.67708132,875.59,874.2,0.19851286]
[1757308624950,1.5293486,875.8,874.2,0.19851286]
[1757308624951,0.67708132,875.58,874.2,0.19851286]
[1757308625246,0.67708132,875.57,874.2,0.19851286]
[1757308625451,0.67708132,875.56,874.2,0.19851286]
[1757308625648,0.67708132,875.55,874.2,0.19851286]
[1757308625851,0.67708132,875.54,874.2,0.19851286]
[1757308626050,0.67708132,875.53,874.2,0.19851286]
[1757308626250,0.67708132,875.52,874.2,0.19851286]
[1757308626450,0.67708132,875.51,874.2,0.19851286]
[1757308626649,0.67708132,875.5,874.2,0.19851286]
[1757308626852,0.67708132,875.49,874.2,0.19851286]
[1757308627052,0.67708132,875.48,874.2,0.19851286]
[1757308627353,1.5293486,875.8,874.2,0.19851286]
[1757308627554,0.67687306,875.79,874.2,0.19851286]
[1757308627850,0.67687306,875.78,874.2,0.19851286]
[1757308628055,0.67687306,875.77,874.2,0.19851286]
[1757308628254,0.67687306,875.76,874.2,0.19851286]
[1757308628551,0.67687306,875.75,874.2,0.19851286]
[1757308628755,0.67687306,875.74,874.2,0.19851286]
[1757308628950,1.5293486,875.8,874.2,0.19851286]
[1757308628951,0.67687306,875.73,874.2,0.19851286]
[1757308629150,0.67687306,875.72,874.2,0.19851286]
[1757308629453,0.67687306,875.71,874.2,0.19851286]
[1757308629651,0.67687306,875.7,874.2,0.19851286]
[1757308629851,1.5293486,875.6,874.2,0.19851286]
[1757308630054,0.67687306,875.59,874.2,0.19851286]
[1757308630250,0.67687306,875.58,874.2,0.19851286]
[1757308630453,0.67687306,875.57,874.2,0.19851286]
[1757308630754,0.67687306,875.56,874.2,0.19851286]
[1757308630952,1.5293486,875.64,874.2,0.19851286]
[1757308631152,0.67680817,875.63,874.2,0.19851286]
[1757308631353,0.67680817,875.62,874.2,0.19851286]
[1757308631652,0.67680817,875.61,874.2,0.19851286]
[1757308631854,0.67680817,875.6,874.2,0.19851286]
[1757308632053,0.67680817,875.59,874.2,0.19851286]
[1757308632253,0.67680817,875.58,874.2,0.19851286]
[1757308632556,0.67680817,875.57,874.2,0.19851286]
[1757308632754,0.67680817,875.56,874.2,0.19851286]
[1757308632957,1.5293486,875.65,874.2,0.19851286]
[1757308633154,0.67671432,875.64,874.2,0.19851286]
[1757308633354,0.67671432,875.63,874.2,0.19851286]
[1757308633558,0.67671432,875.62,874.2,0.19851286]
[1757308633758,0.67671432,875.61,874.2,0.19851286]
[1757308633954,0.67671432,875.6,874.2,0.19851286]
[1757308634254,0.67671432,875.59,874.2,0.19851286]
[1757308634459,0.67671432,875.58,874.2,0.19851286]
[1757308634658,0.67671432,875.57,874.2,0.19851286]
[1757308634857,0.67671432,875.56,874.2,0.19851286]
[1757308635157,0.67671432,875.55,874.2,0.19851286]
[1757308635360,0.67671432,875.54,874.2,0.19851286]
[1757308635554,0.67671432,875.53,874.2,0.19851286]
[1757308635755,0.67671432,875.52,874.2,0.19851286]
[1757308635960,0.67671432,875.51,874.2,0.19851286]
[1757308636160,0.67671432,875.5,874.2,0.19851286]
[1757308636458,0.67671432,875.49,874.2,0.19851286]
[1757308636657,0.67671432,875.48,874.2,0.19851286]
[1757308636857,0.67671432,875.47,874.2,0.19851286]
[1757308637061,0.67671432,875.46,874.2,0.19851286]
[1757308637358,0.67671432,875.45,874.2,0.19851286]
[1757308637557,0.67671432,875.44,874.2,0.19851286]
[1757308637856,0.67671432,875.43,874.2,0.19851286]
[1757308638061,0.67671432,875.42,874.2,0.19851286]
[1757308638364,0.67671432,875.41,874.2,0.19851286]
[1757308638561,0.67671432,875.4,874.2,0.19851286]
[1757308638763,0.67671432,875.39,874.2,0.19851286]
[1757308638962,0.67671432,875.38,874.2,0.19851286]
[1757308639160,0.67671432,875.37,874.2,0.19851286]
[1757308639365,0.67671432,875.36,874.2,0.19851286]
[1757308639663,0.67671432,875.35,874.2,0.19851286]
[1757308639863,0.67671432,875.34,874.2,0.19851286]
[1757308640060,0.67671432,875.33,874.2,0.19851286]
[1757308640264,0.67671432,875.32,874.2,0.19851286]
[1757308640462,0.67671432,875.31,874.2,0.19851286]
[1757308640661,0.67671432,875.3,874.2,0.19851286]
[1757308640865,0.67671432,875.29,874.2,0.19851286]
[1757308641062,0.67671432,875.28,874.2,0.19851286]
[1757308641266,0.67671432,875.27,874.2,0.19851286]
[1757308641461,1.69327424,875.26,874.2,0.19851286]
[1757308641763,0.67671432,875.25,874.2,0.19851286]
[1757308642065,0.67671432,875.24,874.2,0.19851286]
[1757308642265,0.67671432,875.23,874.2,0.19851286]
[1757308642462,0.67671432,875.22,874.2,0.19851286]
[1757308642761,0.67671432,875.21,874.2,0.19851286]
[1757308642961,0.67671432,875.2,874.2,0.19851286]
[1757308643161,0.67671432,875.19,874.2,0.19851286]
[1757308643368,1.01655992,875.32,874.2,0.19851286]
[1757308643369,0.67671432,875.18,874.2,0.19851286]
[1757308643566,0.67671432,875.17,874.2,0.19851286]
[1757308643867,0.67671432,875.16,874.2,0.19851286]
[1757308644074,0.67671432,875.15,874.2,0.19851286]
[1757308644268,1.01655992,875.08,874.2,0.19851286]
[1757308644464,1.01655992,875.06,874.2,0.19851286]
[1757308644663,0.67671432,875.05,874.2,0.19851286]
[1757308644867,1.69327424,875.04,874.2,0.19851286]
[1757308645067,1.01655992,874.94,874.2,0.19851286]
[1757308645366,0.67671432,874.93,874.2,0.19851286]
[1757308645664,0.67671432,874.92,874.2,0.19851286]
[1757308645869,0.67671432,874.91,874.2,0.19851286]
[1757308646068,1.01655992,874.96,874.2,0.19851286]
[1757308646069,0.67671432,874.9,874.2,0.19851286]